bitfinex/quotes_ETHUSD_20240601
["timestamp","ask_amount","ask_price","bid_price","bid_amount"]
[1717227391770,0.02515962,3781.3,3781.2,0.04086245]
[1717227392273,0.635,3781.6,3781.2,0.04086245]
[1717227392447,0.02515962,3781.3,3781.2,0.04086245]
[1717227392635,0.635,3781.6,3781.2,0.04086245]
[1717227392834,0.02515962,3781.3,3781.2,0.04086245]
[1717227393066,0.635,3781.6,3781.2,0.04086245]
[1717227393253,0.02515962,3781.3,3781.2,0.04086245]
[1717227393434,0.635,3781.6,3781.2,0.04086245]
[1717227393636,0.02515962,3781.3,3781.2,0.04086245]
[1717227393931,0.635,3781.6,3781.2,0.04086245]
[1717227394134,0.02515962,3781.3,3781.2,0.04086245]
[1717227394334,0.635,3781.6,3781.2,0.04086245]
[1717227394568,0.02515962,3781.3,3781.2,0.04086245]
[1717227395039,2.936,3781.6,3781.2,0.04086245]
[1717227395239,0.02515962,3781.3,3781.1,2.16161979]
[1717227395452,0.5120106,3781.5,3781.1,2.16161979]
[1717227395675,0.02513062,3781.2,3781.1,2.16161979]
[1717227395981,0.635,3781.4,3781.1,2.16161979]
[1717227396185,0.02513062,3781.2,3781.1,2.16161979]
[1717227396384,0.635,3781.4,3781.1,2.16161979]
[1717227396866,0.02515347,3781.3,3781.1,2.16161979]
[1717227402791,0.02515347,3781.3,3781.1,2.11161979]
[1717227403495,5.64356,3781.2,3781.1,2.11161979]
[1717227403795,5.67029791,3781.2,3781.1,2.11161979]
[1717227404159,6.21536686,3781.2,3781.1,2.11161979]
[1717227405415,6.21536686,3781.2,3781.1,2.10712673]
[1717227406419,6.21538006,3781.2,3781.1,2.10712673]
[1717227406640,6.83691807,3781.2,3781.1,2.10712673]
[1717227408201,6.83691807,3781.2,3781.1,2.1026448]
[1717227410167,6.83691807,3781.2,3781.1,2.09816287]
[1717227410613,9.83691807,3781.2,3781.1,2.09816287]
[1717227411267,9.83691807,3781.2,3779.3,0.0020842]
[1717227411268,2.778,3780.3,3779.3,0.0020842]
[1717227411466,0.98369181,3781.1,3779.3,0.0020842]
[1717227411467,2.9989,3779.4,3779.3,0.0020842]
[1717227411672,3.58418924,3779.4,3779.3,0.0020842]
[1717227411910,2.64602,3779.3,3778.9,2.5]
[1717227412080,2.64613,3779.1,3778.9,2.5]
[1717227412282,2.93608007,3779.0,3778.9,2.5]
[1717227412474,2.6463,3778.9,3778.5,0.2697]
[1717227412676,2.64641,3778.7,3778.5,0.2697]
[1717227412888,3.28141,3778.7,3778.5,0.2697]
[1717227413210,2.57200238,3779.5,3778.5,0.2697]
[1717227413211,2.64586,3779.5,3778.5,0.2697]
[1717227413506,2.3639,3779.8,3778.5,0.2697]
[1717227413507,0.635,3778.8,3778.5,0.2697]
[1717227415171,2.64613,3779.1,3778.5,0.2697]
[1717227415371,3.28113,3779.1,3778.5,0.2697]
[1717227416591,2.64613,3779.1,3778.5,0.2697]
[1717227416815,3.28113,3779.1,3778.5,0.2697]
[1717227417898,2.64573,3779.7,3778.5,0.2697]
[1717227418098,0.635,3779.5,3778.5,0.2697]
[1717227420118,0.635,3779.3,3778.5,0.2697]
[1717227422187,0.635,3779.5,3778.5,0.2697]
[1717227422516,2.64573,3779.7,3778.5,0.2697]
[1717227422696,0.635,3779.5,3778.5,0.2697]
[1717227423894,2.64573,3779.7,3778.5,0.2697]
[1717227424105,3.28073,3779.7,3778.5,0.2697]
[1717227425834,2.64573,3779.7,3779.0,0.635]
[1717227426185,5.64535,3780.3,3779.4,0.635]
[1717227426384,5.64535,3780.3,3779.5,2.4791]
[1717227426385,2.64535,3780.3,3779.5,2.4791]
[1717227426647,2.64535,3780.3,3779.6,0.635]
[1717227427303,2.4401,3780.9,3779.6,0.635]
[1717227427304,2.64494,3780.8,3779.6,0.635]
[1717227427683,3.27994,3780.8,3779.6,0.635]
[1717227428192,2.64494,3780.8,3779.6,0.635]
[1717227428396,3.27994,3780.8,3779.6,0.635]
[1717227428610,3.27994,3780.8,3779.7,0.607143]
[1717227429336,2.64494,3780.8,3779.7,0.607143]
[1717227429685,2.64494,3780.8,3779.8,0.635]
[1717227430313,2.6446,3781.3,3780.0,0.635]
[1717227430528,1.14347,3781.2,3780.2,0.635]
[1717227430824,1.14347,3781.2,3780.0,1.0237703]
[1717227432196,4.14347,3781.2,3780.0,1.0237703]
[1717227432410,0.922817,3781.1,3780.0,1.0237703]
[1717227433008,0.635,3781.0,3780.0,1.0237703]
[1717227433552,1.557817,3781.1,3780.0,1.0237703]
[1717227434159,0.922817,3781.1,3780.0,1.0237703]
[1717227434445,1.557817,3781.1,3780.0,1.0237703]
[1717227434753,0.922817,3781.1,3780.0,1.0237703]
[1717227436643,3.50847,3781.2,3780.2,2.4791]
[1717227436844,0.50847,3781.2,3780.2,3.1141]
[1717227437555,0.50847,3781.2,3780.3,0.05289896]
[1717227438063,3.0,3781.6,3780.3,2.64524]
[1717227438212,0.635,3781.5,3780.4,0.635]
[1717227439611,2.64433,3781.7,3780.6,0.635]
[1717227439811,3.27933,3781.7,3780.6,0.635]
[1717227440057,0.59234896,3781.6,3780.6,0.635]
[1717227440750,0.59234896,3781.6,3780.4,8.06348567]
[1717227440914,0.635,3781.5,3780.5,2.4791]
[1717227442346,3.27933,3781.7,3780.5,2.4791]
[1717227442660,2.64433,3781.7,3780.5,2.4791]
[1717227442826,3.27933,3781.7,3780.5,2.4791]
[1717227443012,3.92766896,3781.7,3780.5,2.4791]
[1717227444148,3.29266896,3781.7,3780.5,2.4791]
[1717227452776,3.29266896,3781.7,3780.6,2.64504]
[1717227452978,3.29266896,3781.7,3780.7,2.2814]
[1717227462097,0.57174071,3781.6,3780.7,2.2814]
[1717227462343,1.04208764,3781.6,3780.7,2.2814]
[1717227467768,1.04208764,3781.6,3780.8,2.64494]
[1717227470842,0.57174071,3781.6,3780.8,2.64494]
[1717227471035,1.22007967,3781.7,3780.8,2.64494]
[1717227471359,0.57174071,3781.7,3780.8,2.64494]
[1717227471773,0.57174071,3781.7,3780.6,0.635]
[1717227471935,0.635,3781.4,3780.5,2.2619]
[1717227472639,1.20674071,3781.4,3780.5,2.2619]
[1717227472961,0.66351407,3781.3,3780.5,2.2619]
[1717227473126,1.23525478,3781.3,3780.5,2.2619]
[1717227474473,0.66351407,3781.3,3780.5,2.2619]
[1717227474629,1.23529205,3781.3,3780.5,2.2619]
[1717227474823,0.57177798,3781.2,3780.5,2.2619]
[1717227475025,1.23529205,3781.3,3780.5,2.2619]
[1717227477864,0.66351407,3781.3,3780.5,2.2619]
[1717227478065,1.23529353,3781.3,3780.5,2.2619]
[1717227482533,0.635,3781.0,3780.4,7.42848567]
[1717227482841,3.0634,3781.0,3780.4,7.42848567]
[1717227484867,3.0634,3781.0,3780.1,2.2619]
[1717227488852,3.0634,3781.0,3780.1,2.64537]
[1717227489054,3.0634,3781.0,3780.1,5.04747]
[1717227489378,3.74926134,3781.0,3780.1,2.64537]
[1717227489880,3.11426134,3781.0,3780.1,2.64537]
[1717227490065,2.4284,3781.0,3780.1,2.64537]
[1717227491478,2.4284,3781.0,3780.2,2.4021]
[1717227491803,2.4284,3781.0,3780.3,2.64528]
[1717227495092,0.635,3781.3,3780.3,2.64528]
[1717227495385,0.635,3781.3,3780.5,2.64513]
[1717227495571,3.635,3781.3,3780.5,2.64513]
[1717227496563,3.0,3781.3,3780.6,2.4021]
[1717227496767,0.635,3781.5,3780.6,2.4021]
[1717227496969,4.20676286,3781.5,3780.6,2.4021]
[1717227497296,4.20676286,3781.5,3780.5,2.64513]
[1717227497297,0.635,3781.3,3780.5,2.64513]
[1717227497458,2.2549,3781.2,3780.5,2.64513]
[1717227497661,2.60106589,3781.2,3780.5,2.64513]
[1717227498199,0.635,3781.1,3780.5,2.64513]
[1717227498585,0.635,3781.1,3780.2,7.42848567]
[1717227501928,1.20679483,3781.1,3780.2,7.42848567]
[1717227502132,0.635,3780.9,3780.2,7.42848567]
[1717227502339,0.635,3780.9,3780.0,2.64545]
[1717227502503,0.635,3780.9,3780.0,3.71634357]
[1717227503426,1.20681546,3780.9,3780.0,3.71634357]
[1717227503803,0.635,3780.9,3780.0,3.71634357]
[1717227505037,2.8899,3781.0,3780.0,3.71634357]
[1717227505895,2.8899,3781.0,3780.1,0.43513436]
[1717227508721,2.8899,3781.0,3780.1,2.73263436]
[1717227511362,2.2549,3781.0,3780.2,2.64534]
[1717227511860,2.2549,3781.0,3780.2,3.28034]
[1717227520946,2.2549,3781.0,3780.2,2.64534]
[1717227521280,2.461,3781.2,3780.4,0.635]
[1717227522773,2.461,3781.2,3780.5,2.6451]
[1717227531482,2.461,3781.2,3780.4,0.635]
[1717227532059,2.461,3781.2,3780.5,2.6451]
[1717227543565,3.0706,3781.2,3780.5,2.6451]
[1717227552212,3.0706,3781.2,3780.2,0.635]
[1717227554618,2.461,3781.2,3780.2,0.635]
[1717227561730,3.096,3781.2,3780.2,0.635]
[1717227561900,2.3524,3781.1,3780.2,0.635]
[1717227564282,2.3524,3781.1,3780.1,7.42848567]
[1717227564647,2.3524,3781.1,3780.1,8.06348567]
[1717227564857,2.4018,3780.9,3780.1,8.06348567]
[1717227565664,0.635,3780.8,3780.1,7.42848567]
[1717227565822,2.4018,3780.7,3780.1,7.42848567]
[1717227566832,2.4018,3780.7,3779.8,0.635]
[1717227571853,2.4018,3780.7,3780.0,3.0243]
[1717227572182,2.4018,3781.1,3780.2,0.635]
[1717227572958,2.4018,3781.1,3780.3,2.64528]
[1717227573162,2.4018,3781.1,3780.4,0.635]
[1717227573397,2.4018,3781.1,3780.4,0.328028]
[1717227573580,2.4018,3781.1,3780.4,0.963028]
[1717227577695,2.4018,3781.1,3780.4,0.328028]
[1717227580048,2.4018,3781.1,3780.3,2.64528]
[1717227588373,3.0368,3781.1,3780.3,2.64528]
[1717227591479,3.0368,3781.1,3780.0,2.3893]
[1717227591982,0.635,3780.9,3780.0,2.3893]
[1717227592361,2.4018,3781.1,3780.0,2.3893]
[1717227592564,0.635,3781.0,3780.0,2.3893]
[1717227595508,2.2657,3780.9,3780.0,2.3893]
[1717227595661,2.2657,3780.9,3779.9,0.635]
[1717227598105,2.2657,3780.9,3780.0,2.64546]
[1717227600607,2.2657,3780.9,3780.1,2.2641]
[1717227600805,4.9103,3781.3,3780.3,3.28029]
[1717227601015,0.57177924,3781.2,3780.4,2.2641]
[1717227601300,4.9103,3781.3,3780.4,2.2641]
[1717227602706,0.57176871,3781.2,3780.4,2.2641]
[1717227605283,0.57176871,3781.2,3780.3,2.64529]
[1717227605483,1.5022402,3781.2,3780.3,2.64529]
[1717227605682,0.93047149,3781.2,3780.3,2.64529]
[1717227607318,2.4301,3781.1,3780.3,2.64529]
[1717227607614,3.0651,3781.1,3780.3,2.64529]
[1717227611598,2.4301,3781.0,3780.3,2.64529]
[1717227614214,3.45662904,3781.0,3780.3,2.64529]
[1717227629430,0.93047149,3781.2,3780.3,2.64529]
[1717227629740,0.57178141,3781.1,3780.3,4.95679]
[1717227629893,3.2796,3781.3,3780.3,4.95679]
[1717227630205,0.57177481,3781.2,3780.3,4.95679]
[1717227632036,0.07416886,3781.1,3780.3,4.95679]
[1717227636630,1.20677076,3781.3,3780.3,4.95679]
[1717227636944,0.07430377,3781.0,3780.3,4.95679]
[1717227637106,0.07434361,3781.2,3780.3,6.25881757]
[1717227640079,0.07434361,3781.2,3780.3,6.89381757]
[1717227640636,6.125,3781.4,3780.3,6.89381757]
[1717227640871,0.07432656,3781.1,3780.3,6.89381757]
[1717227641047,6.125,3781.4,3780.3,6.89381757]
[1717227641048,0.0743664,3781.3,3780.3,6.89381757]
[1717227641249,0.07430664,3781.0,3780.3,6.89381757]
[1717227641581,0.07428672,3780.9,3780.4,1.43223032]
[1717227641783,6.125,3781.4,3780.4,1.43223032]
[1717227642078,0.0743664,3781.3,3780.3,5.59179]
[1717227645336,0.7093664,3781.3,3780.3,5.59179]
[1717227647582,0.7093664,3781.3,3780.3,4.95679]
[1717227649379,2.4615,3781.2,3780.3,2.64529]
[1717227649579,0.07422633,3781.1,3780.3,2.64529]
[1717227657497,2.4615,3781.0,3780.3,2.64529]
[1717227657922,0.07420156,3780.9,3780.3,2.64529]
[1717227659929,0.07420156,3780.9,3780.3,4.92649]
[1717227660222,2.4615,3781.0,3780.3,4.92649]
[1717227660614,0.07418149,3780.9,3780.3,4.92649]
[1717227660814,0.07418149,3780.9,3780.4,1.29899757]
[1717227661031,2.4615,3781.0,3780.4,1.29899757]
[1717227661431,0.07418149,3780.9,3780.4,1.29899757]
[1717227661805,2.4615,3781.0,3780.4,1.29899757]
[1717227662137,0.07418149,3780.9,3780.4,1.29899757]
[1717227662427,2.4615,3781.0,3780.4,1.29899757]
[1717227662936,0.07418149,3780.9,3780.4,1.29899757]
[1717227663227,2.4615,3781.0,3780.4,1.29899757]
[1717227663628,0.07418149,3780.9,3780.4,1.29899757]
[1717227663930,0.07418149,3780.9,3780.5,0.68604876]
[1717227664236,2.4615,3781.0,3780.4,1.29899757]
[1717227664530,2.2978,3781.4,3780.4,1.29899757]
[1717227664747,0.07418149,3780.9,3780.4,1.29899757]
[1717227664898,0.57175778,3781.3,3780.4,1.29899757]
[1717227665117,0.07416156,3780.8,3780.3,4.92649]
[1717227665336,2.2978,3781.4,3780.3,4.92649]
[1717227665625,2.2978,3781.4,3780.5,2.64512]
[1717227665843,0.07426118,3781.3,3780.5,2.64512]
[1717227666250,0.64601222,3781.3,3780.5,2.64512]
[1717227667211,0.64601104,3781.3,3780.5,2.64512]
[1717227667612,0.64601136,3781.3,3780.5,2.64512]
[1717227668910,0.07426118,3781.3,3780.5,2.64512]
[1717227669253,0.6460098,3781.3,3780.5,2.64512]
[1717227670067,0.07426118,3781.3,3780.5,2.64512]
[1717227670277,0.07426118,3781.3,3780.5,3.201252]
[1717227674778,0.07426118,3781.3,3780.6,2.3392]
[1717227675145,0.635,3781.5,3780.6,2.3392]
[1717227675556,0.06932761,3781.4,3780.6,2.3392]
[1717227680507,0.635,3781.5,3780.6,2.3392]
[1717227680694,0.06930482,3781.3,3780.6,2.3392]
[1717227680901,0.06932474,3781.4,3780.7,0.6175452]
[1717227681228,0.06930482,3781.3,3780.7,0.6175452]
[1717227681434,5.2978,3781.7,3780.7,0.6175452]
[1717227681634,0.0692849,3781.2,3780.7,0.6175452]
[1717227681813,1.20672938,3781.6,3780.7,0.6175452]
[1717227682013,0.06934466,3781.5,3780.7,0.6175452]
[1717227682223,0.06934466,3781.5,3780.8,1.30303509]
[1717227683251,2.9328,3781.7,3780.8,1.30303509]
[1717227683408,0.06934194,3781.4,3780.8,1.30303509]
[1717227683617,2.9328,3781.7,3780.8,1.30303509]
[1717227683835,0.06939325,3781.6,3780.7,0.6175452]
[1717227688480,0.06939325,3781.6,3780.8,2.64493]
[1717227688772,0.70439325,3781.6,3780.8,2.64493]
[1717227691776,0.70439325,3781.6,3780.9,2.3029]
[1717227692987,0.06939325,3781.6,3780.9,2.3029]
[1717227693151,0.635,3781.5,3780.9,2.85943752]
[1717227693670,0.06924714,3781.4,3780.9,2.85943752]
[1717227694178,3.2793,3781.8,3780.9,2.85943752]
[1717227694783,0.635,3781.6,3780.9,2.85943752]
[1717227695079,0.06696237,3781.5,3780.9,2.85943752]
[1717227695287,0.06696237,3781.5,3781.0,0.61219127]
[1717227698987,0.06696237,3781.5,3781.1,2.64472]
[1717227699192,2.69583401,3782.1,3781.2,2.3029]
[1717227699378,3.57167294,3782.0,3781.2,2.3029]
[1717227699570,3.06706928,3782.0,3781.2,2.3029]
[1717227700463,0.06706928,3782.0,3781.2,2.92238113]
[1717227700669,0.06706928,3782.0,3781.3,2.64452]
[1717227701114,0.70206928,3782.0,3781.3,2.64452]
[1717227706107,0.06706928,3782.0,3781.4,2.3461]
[1717227706295,0.06706928,3782.0,3781.5,0.56101011]
[1717227707516,0.06706928,3782.0,3781.6,2.3461]
[1717227713322,0.20393401,3782.1,3781.6,2.3461]
[1717227732924,0.635,3782.0,3781.5,0.56101011]
[1717227733253,0.70023996,3782.0,3781.5,0.56101011]
[1717227735773,0.635,3781.8,3781.3,2.64452]
[1717227736078,0.635,3781.6,3781.3,2.64452]
[1717227736447,0.0650713,3781.5,3780.9,7.42848567]
[1717227736630,0.0650713,3781.5,3781.0,1.31580209]
[1717227736842,0.635,3781.4,3781.0,1.31580209]
[1717227737184,2.64412,3782.0,3780.8,2.64489]
[1717227737185,0.635,3781.2,3780.8,2.64489]
[1717227737529,0.635,3781.2,3780.5,7.42848567]
[1717227740547,0.635,3781.0,3780.5,7.42848567]
[1717227740753,3.0116,3780.8,3780.5,7.42848567]
[1717227740954,2.3766,3780.8,3780.5,7.42848567]
[1717227741990,3.0116,3780.8,3780.5,7.42848567]
[1717227742298,2.3766,3780.8,3780.5,7.42848567]
[1717227742484,2.3766,3780.8,3779.9,19.66848567]
[1717227742669,2.3766,3780.8,3780.0,5.64560763]
[1717227743270,3.0116,3780.8,3780.0,5.64560763]
[1717227744063,2.3766,3780.8,3780.0,5.64560763]
[1717227744263,3.0116,3780.8,3780.0,5.64560763]
[1717227744463,0.064339,3780.7,3780.0,5.64560763]
[1717227744693,0.064339,3780.7,3780.1,1.44471867]
[1717227756667,0.064339,3780.7,3780.2,2.64536]
[1717227776891,0.064339,3780.7,3780.2,5.12506]
[1717227777049,2.4019,3781.0,3780.2,5.12506]
[1717227777463,0.06064379,3780.9,3780.2,5.12506]
[1717227777662,0.06064379,3780.9,3780.3,1.02047787]
[1717227777886,2.4019,3781.0,3780.3,1.02047787]
[1717227778278,0.06064379,3780.9,3780.3,1.02047787]
[1717227778588,2.4019,3781.0,3780.3,1.02047787]
[1717227778756,0.06062386,3780.8,3780.3,1.02047787]
[1717227778958,0.06064379,3780.9,3780.4,0.82252565]
[1717227779165,2.4019,3781.0,3780.4,0.82252565]
[1717227779690,0.06064379,3780.9,3780.4,0.82252565]
[1717227780086,2.4019,3781.0,3780.4,0.82252565]
[1717227780485,0.06064379,3780.9,3780.4,0.82252565]
[1717227780681,0.06064379,3780.9,3780.2,2.64536]
[1717227780895,2.4019,3781.0,3780.2,2.64536]
[1717227781394,0.06064379,3780.9,3780.2,2.64536]
[1717227781792,2.4019,3781.0,3780.2,2.64536]
[1717227782095,2.4019,3781.0,3780.3,0.876006]
[1717227782301,0.06064379,3780.9,3780.3,0.876006]
[1717227782837,2.4019,3781.0,3780.3,0.876006]
[1717227782958,0.06062386,3780.8,3780.3,0.876006]
[1717227783161,2.4019,3781.0,3780.3,0.876006]
[1717227783498,0.05960726,3780.7,3780.4,0.3521366]
[1717227783797,2.4019,3781.0,3780.4,0.3521366]
[1717227783982,0.05958733,3780.6,3780.4,0.3521366]
[1717227784184,2.4019,3781.0,3780.4,0.3521366]
[1717227784387,0.0595674,3780.5,3780.4,0.3521366]
[1717227784575,2.4019,3781.0,3780.4,0.3521366]
[1717227784773,0.0595674,3780.5,3780.3,0.876006]
[1717227784977,2.4019,3781.0,3780.3,0.876006]
[1717227785175,0.05954747,3780.4,3780.3,0.876006]
[1717227785384,2.4019,3781.0,3780.3,0.876006]
[1717227785584,0.05950418,3780.4,3780.3,0.876006]
[1717227785796,2.4019,3781.0,3780.3,0.876006]
[1717227786097,0.05950418,3780.4,3780.3,0.876006]
[1717227786297,2.4019,3781.0,3780.3,0.876006]
[1717227786674,0.05960383,3780.9,3780.3,0.876006]
[1717227786983,2.4019,3781.0,3780.3,0.876006]
[1717227787180,0.0595839,3780.8,3780.3,0.876006]
[1717227787411,2.4019,3781.0,3780.4,0.3521366]
[1717227787584,0.05956398,3780.7,3780.3,0.876006]
[1717227787934,2.4019,3781.0,3780.3,0.876006]
[1717227788234,0.05960383,3780.9,3780.3,0.876006]
[1717227788402,2.4019,3781.0,3780.3,0.876006]
[1717227788602,0.0595839,3780.8,3780.3,0.876006]
[1717227788800,2.4019,3781.0,3780.4,0.3521366]
[1717227789113,0.05955532,3780.7,3780.4,0.3521366]
[1717227789313,2.4019,3781.0,3780.4,0.3521366]
[1717227789627,0.05959518,3780.9,3780.4,0.3521366]
[1717227789847,2.4019,3781.0,3780.4,0.3521366]
[1717227790008,0.05957525,3780.8,3780.4,0.3521366]
[1717227790333,0.05959518,3780.9,3780.4,0.3521366]
[1717227790562,2.4019,3781.0,3780.4,0.3521366]
[1717227790850,0.05957525,3780.8,3780.4,0.3521366]
[1717227791148,2.4019,3781.0,3780.5,0.38735026]
[1717227791354,2.4019,3781.0,3780.3,0.876006]
[1717227791520,0.05959518,3780.9,3780.3,0.876006]
[1717227791944,2.4019,3781.0,3780.3,0.876006]
[1717227792339,0.05960095,3780.9,3780.3,0.876006]
[1717227792862,2.4019,3781.0,3780.3,0.876006]
[1717227793218,0.05960095,3780.9,3780.3,0.876006]
[1717227793451,2.4019,3781.0,3780.3,0.876006]
[1717227793655,0.05958102,3780.8,3780.3,0.876006]
[1717227793952,2.4019,3781.0,3780.4,0.3521366]
[1717227794127,2.4019,3781.0,3780.3,0.876006]
[1717227794450,0.05960095,3780.9,3780.3,0.876006]
[1717227794651,2.4019,3781.0,3780.3,0.876006]
[1717227794859,0.05958102,3780.8,3780.3,0.876006]
[1717227795061,0.05960095,3780.9,3780.3,0.876006]
[1717227795259,2.4019,3781.0,3780.3,0.876006]
[1717227795614,0.05960095,3780.9,3780.3,0.876006]
[1717227795816,2.4019,3781.0,3780.3,0.876006]
[1717227796063,0.05958102,3780.8,3780.3,0.876006]
[1717227796218,2.4019,3781.0,3780.3,0.876006]
[1717227796219,0.05960095,3780.9,3780.3,0.876006]
[1717227796419,0.0595611,3780.7,3780.3,0.876006]
[1717227796640,0.635,3780.8,3780.3,0.876006]
[1717227796866,0.05954117,3780.6,3780.0,3.0]
[1717227797161,2.4374,3780.7,3780.0,3.0]
[1717227797346,0.05952123,3780.5,3780.0,3.0]
[1717227797546,2.4374,3780.7,3780.0,3.0]
[1717227797757,0.05952673,3780.6,3780.0,3.0]
[1717227798059,0.05952673,3780.6,3780.1,1.04284857]
[1717227798234,2.4374,3780.7,3780.1,1.04284857]
[1717227798555,0.05944043,3780.5,3780.1,1.04284857]
[1717227798774,2.4374,3780.7,3780.1,1.04284857]
[1717227799083,0.0594205,3780.4,3780.1,1.04284857]
[1717227799228,2.4374,3780.7,3780.1,1.04284857]
[1717227799418,0.05940057,3780.3,3780.2,1.14713342]
[1717227799624,2.4374,3780.7,3780.2,1.14713342]
[1717227800439,0.05946037,3780.6,3780.2,1.14713342]
[1717227800641,2.4374,3780.7,3780.2,1.14713342]
[1717227800956,0.0595152,3780.6,3780.3,0.41471334]
[1717227801335,2.4374,3780.7,3780.3,0.41471334]
[1717227801568,0.0575126,3780.6,3780.3,0.41471334]
[1717227801862,2.4374,3780.7,3780.3,0.41471334]
[1717227802067,0.05749267,3780.5,3780.3,0.41471334]
[1717227802362,2.4374,3780.7,3780.3,0.41471334]
[1717227802657,0.0575126,3780.6,3780.3,0.41471334]
[1717227802861,2.4374,3780.7,3780.3,0.41471334]
[1717227803356,0.0575126,3780.6,3780.3,0.41471334]
[1717227803536,0.635,3780.9,3780.4,0.15618468]
[1717227803877,0.05755246,3780.8,3780.3,0.41471334]
[1717227811455,0.05755246,3780.8,3780.3,2.83871334]
[1717227812666,2.4374,3781.0,3780.3,2.83871334]
[1717227812869,0.05739495,3780.7,3780.3,2.83871334]
[1717227813082,2.4374,3781.0,3780.3,2.83871334]
[1717227813535,0.0574348,3780.9,3780.3,2.83871334]
[1717227813735,0.0574348,3780.9,3780.4,0.66312568]
[1717227813936,2.8888,3781.2,3780.4,0.66312568]
[1717227814135,0.05549202,3781.1,3780.4,0.66312568]
[1717227819972,0.05549202,3781.1,3780.5,3.059]
[1717227820179,3.08245398,3781.5,3780.5,2.424]
[1717227820338,0.05363346,3781.0,3780.6,0.4136839]
[1717227820535,3.08245398,3781.5,3780.6,0.4136839]
[1717227820774,0.05371316,3781.4,3780.6,0.4136839]
[1717227823868,0.05371316,3781.4,3780.7,2.2943]
[1717227825296,0.0537309,3781.3,3780.9,5.42283]
[1717227826106,2.4143,3783.3,3780.9,5.42283]
[1717227826107,0.57162895,3783.2,3781.0,4.19534631]
[1717227826253,0.57162895,3783.2,3781.2,0.8297631]
[1717227826456,2.4143,3781.9,3781.1,0.98301844]
[1717227826768,3.0493,3781.9,3781.1,0.98301844]
[1717227828064,2.4143,3781.9,3781.1,1.61801844]
[1717227829683,3.0493,3781.9,3781.1,0.98301844]
[1717227829872,0.635,3781.8,3781.1,0.98301844]
[1717227830855,0.635,3781.6,3780.9,7.42848567]
[1717227831278,2.4143,3781.5,3780.9,7.42848567]
[1717227831678,0.0392704,3781.4,3780.9,7.42848567]
[1717227836358,0.0392704,3781.4,3780.8,3.24369139]
[1717227836565,2.4143,3781.5,3780.8,3.24369139]
[1717227840997,2.4143,3781.5,3780.9,0.42923753]
[1717227840998,2.23884461,3781.5,3780.9,0.42923753]
[1717227841499,0.03938332,3781.4,3780.9,0.42923753]
[1717227841996,0.0393634,3781.3,3781.0,2.64478]
[1717227842165,3.5716697,3782.3,3781.0,2.64478]
[1717227842365,0.67454266,3782.2,3781.1,0.635]
[1717227843196,0.635,3782.1,3781.2,2.6446]
[1717227843402,0.67467041,3782.1,3781.2,2.6446]
[1717227843967,2.2829,3782.0,3781.2,2.6446]
[1717227844168,0.03963347,3781.9,3781.2,2.6446]
[1717227845227,0.03963347,3781.9,3781.2,3.20199]
[1717227845374,2.6435,3782.9,3781.4,2.64449]
[1717227845375,2.2829,3782.2,3781.4,2.64449]
[1717227845576,0.039792,3782.1,3781.4,2.64449]
[1717227846190,2.2829,3782.0,3781.4,2.64449]
[1717227846394,0.2957692,3781.9,3781.4,2.64449]
[1717227846609,0.03975217,3781.9,3781.4,2.64449]
[1717227850401,0.03975217,3781.9,3780.9,13.00261567]
[1717227851192,0.635,3781.7,3780.9,10.07331567]
[1717227851438,0.635,3781.5,3780.9,7.42848567]
[1717227851635,0.635,3781.3,3780.9,7.42848567]
[1717227851998,0.03938401,3781.2,3780.9,7.42848567]
[1717227852224,0.635,3781.3,3780.9,7.42848567]
[1717227852542,0.03936408,3781.1,3780.9,7.42848567]
[1717227852703,0.635,3781.3,3780.4,2.64518]
[1717227852902,0.635,3781.3,3780.4,4.25809657]
[1717227855304,2.2829,3781.2,3780.4,2.64518]
[1717227856237,0.635,3781.1,3780.4,2.64518]
[1717227856842,0.635,3780.7,3780.3,7.42848567]
[1717227857437,0.635,3780.5,3780.3,7.42848567]
[1717227857608,0.03906821,3780.4,3780.3,7.42848567]
[1717227857813,0.92679,3780.5,3780.3,7.42848567]
[1717227858049,0.03891184,3780.4,3780.3,7.42848567]
[1717227858278,0.92679,3780.5,3780.3,7.42848567]
[1717227858571,0.03891184,3780.4,3780.3,7.42848567]
[1717227858936,0.635,3780.5,3780.3,7.42848567]
[1717227859266,0.03881334,3780.4,3780.3,7.42848567]
[1717227859475,0.635,3780.5,3780.3,7.42848567]
[1717227859660,0.03881334,3780.4,3779.7,2.64569]
[1717227859864,0.635,3780.5,3779.7,3.71660757]
[1717227860176,0.635,3780.5,3779.7,2.64569]
[1717227860349,2.9179,3779.9,3779.5,7.42848567]
[1717227862250,0.03852097,3779.8,3779.5,7.42848567]
[1717227865572,0.03852097,3779.8,3779.2,2.64601]
[1717227865807,0.635,3779.7,3778.9,7.42848567]
[1717227866009,0.635,3779.7,3779.0,3.0]
[1717227866819,0.635,3779.8,3779.0,3.0]
[1717227871015,2.64525,3780.4,3778.9,7.42848567]
[1717227871016,2.4399,3779.5,3778.9,7.42848567]
[1717227874434,2.4399,3779.5,3778.7,2.64639]
[1717227874591,2.4399,3779.5,3778.8,5.62195757]
[1717227880427,2.4399,3779.5,3778.5,0.2697]
[1717227880428,2.68164771,3779.4,3778.5,0.2697]
[1717227880631,2.4399,3778.8,3778.5,0.2697]
[1717227880847,0.03544533,3778.7,3778.5,0.2697]
[1717227881058,2.4399,3778.8,3778.5,0.2697]
[1717227881226,0.03544533,3778.7,3778.5,0.2697]
[1717227881555,2.4399,3778.8,3778.5,0.2697]
[1717227882034,0.03544533,3778.7,3778.5,0.2697]
[1717227882232,0.635,3778.6,3778.5,0.2697]
[1717227882543,0.03540436,3778.6,3778.5,0.2697]
[1717227882859,0.67040436,3778.6,3778.5,0.2697]
[1717227884484,0.03540436,3778.6,3778.5,0.2697]
[1717227884629,0.635,3778.9,3778.5,0.2697]
[1717227884829,0.03502749,3778.8,3778.5,0.2697]
[1717227887862,0.635,3778.7,3778.5,0.2697]